[Event "Titled Tuesday Blitz April 12 Early 2022"]
[White "Domingo Nunez, Alejandro"]
[Black "Gracia Alvarez, Gerardo Antonio"]
[WhiteFideId "22245561"]
[BlackFideId "5109124"]
[WhiteElo "2215"]
[BlackElo "2139"]
[Result "1-0"]
[Round "10"]
[TimeControl "180+1"]
[Date "2022.04.13"]
[WhiteClock "0:00:03"]
[BlackClock "0:00:14"]

1. Nf3 {[%clk 0:02:55]}  Nf6 {[%clk 0:02:58]} 2. g3 {[%clk 0:02:55]}  g6 {[%clk 0:02:58]} 3. Bg2 {[%clk 0:02:55]}  Bg7 {[%clk 0:02:58]} 4. O-O {[%clk 0:02:56]}  O-O {[%clk 0:02:59]} 5. d3 {[%clk 0:02:57]}  d5 {[%clk 0:02:57]} 6. Bd2 {[%clk 0:02:58]}  c5 {[%clk 0:02:57]} 7. c4 {[%clk 0:02:58]}  Nc6 {[%clk 0:02:55]} 8. cxd5 {[%clk 0:02:58]}  Nxd5 {[%clk 0:02:54]} 9. Qc1 {[%clk 0:02:59]}  b6 {[%clk 0:02:45]} 10. Nc3 {[%clk 0:02:58]}  Nxc3 {[%clk 0:02:38]} 11. Bxc3 {[%clk 0:02:59]}  Bxc3 {[%clk 0:02:34]} 12. bxc3 {[%clk 0:02:56]}  Bb7 {[%clk 0:02:34]} 13. Qh6 {[%clk 0:02:56]}  f6 {[%clk 0:02:28]} 14. Nh4 {[%clk 0:02:54]}  Qd7 {[%clk 0:02:20]} 15. Nxg6 {[%clk 0:01:58]}  hxg6 {[%clk 0:02:19]} 16. Qxg6+ {[%clk 0:01:59]}  Kh8 {[%clk 0:02:20]} 17. Be4 {[%clk 0:01:57]}  e6 {[%clk 0:02:07]} 18. f4 {[%clk 0:01:44]}  f5 {[%clk 0:01:49]} 19. Bf3 {[%clk 0:01:35]}  Rae8 {[%clk 0:01:36]} 20. e4 {[%clk 0:01:27]}  Qg7 {[%clk 0:01:25]} 21. Qh5+ {[%clk 0:01:24]}  Qh7 {[%clk 0:01:25]} 22. Qg5 {[%clk 0:01:25]}  Ne7 {[%clk 0:01:01]} 23. Rae1 {[%clk 0:01:14]}  fxe4 {[%clk 0:00:52]} 24. dxe4 {[%clk 0:01:03]}  Ng8 {[%clk 0:00:44]} 25. Bh5 {[%clk 0:00:50]}  Re7 {[%clk 0:00:44]} 26. Bg6 {[%clk 0:00:47]}  Qh6 {[%clk 0:00:38]} 27. Qe5+ {[%clk 0:00:43]}  Qg7 {[%clk 0:00:38]} 28. Qg5 {[%clk 0:00:29]}  Qh6 {[%clk 0:00:35]} 29. h4 {[%clk 0:00:27]}  Qxg5 {[%clk 0:00:35]} 30. hxg5 {[%clk 0:00:28]}  Kg7 {[%clk 0:00:30]} 31. Bh5 {[%clk 0:00:18]}  Rd8 {[%clk 0:00:28]} 32. f5 {[%clk 0:00:18]}  exf5 {[%clk 0:00:28]} 33. exf5 {[%clk 0:00:19]}  Red7 {[%clk 0:00:27]} 34. f6+ {[%clk 0:00:19]}  Kh7 {[%clk 0:00:23]} 35. Rf2 {[%clk 0:00:04]}  Rd2 {[%clk 0:00:18]} 36. g6+ {[%clk 0:00:03]}  Kh6 {[%clk 0:00:18]} 37. Rxd2 {[%clk 0:00:04]}  Rxd2 {[%clk 0:00:17]} 38. f7 {[%clk 0:00:04]}  Kg7 {[%clk 0:00:14]} 39. Re8 {[%clk 0:00:03]} 1-0


[Site "https://www.chess.com"]

[Event "Titled Tuesday Blitz April 12 Early 2022"]
[White "Esipenko, Andrey"]
[Black "Murzin, Volodar"]
[WhiteFideId "24175439"]
[BlackFideId "44155573"]
[WhiteElo "2617"]
[BlackElo "2585"]
[Result "1-0"]
[Round "10"]
[TimeControl "180+1"]
[Date "2022.04.12"]
[WhiteClock "0:00:10"]
[BlackClock "0:00:01"]

1. d4 {[%clk 0:03:00]}  d5 {[%clk 0:02:54]} 2. c4 {[%clk 0:03:00]}  c6 {[%clk 0:02:52]} 3. Nf3 {[%clk 0:02:59]}  Nf6 {[%clk 0:02:50]} 4. Nc3 {[%clk 0:03:00]}  e6 {[%clk 0:02:48]} 5. e3 {[%clk 0:03:00]}  Nbd7 {[%clk 0:02:42]} 6. Be2 {[%clk 0:03:00]}  Bd6 {[%clk 0:02:42]} 7. O-O {[%clk 0:03:00]}  O-O {[%clk 0:02:42]} 8. b3 {[%clk 0:03:01]}  Qe7 {[%clk 0:02:37]} 9. Bb2 {[%clk 0:03:01]}  Ba3 {[%clk 0:02:37]} 10. Bxa3 {[%clk 0:02:48]}  Qxa3 {[%clk 0:02:38]} 11. Bd3 {[%clk 0:02:44]}  Qd6 {[%clk 0:02:22]} 12. e4 {[%clk 0:02:36]}  dxe4 {[%clk 0:02:21]} 13. Nxe4 {[%clk 0:02:29]}  Nxe4 {[%clk 0:02:21]} 14. Bxe4 {[%clk 0:02:30]}  Nf6 {[%clk 0:02:21]} 15. c5 {[%clk 0:02:26]}  Qf4 {[%clk 0:02:15]} 16. Bd3 {[%clk 0:02:23]}  Rd8 {[%clk 0:02:15]} 17. Qe2 {[%clk 0:02:22]}  Nd5 {[%clk 0:02:05]} 18. g3 {[%clk 0:02:19]}  Qf6 {[%clk 0:01:59]} 19. Rac1 {[%clk 0:02:12]}  a5 {[%clk 0:01:51]} 20. a3 {[%clk 0:02:10]}  Bd7 {[%clk 0:01:47]} 21. Ne5 {[%clk 0:02:09]}  Be8 {[%clk 0:01:46]} 22. Rfd1 {[%clk 0:02:07]}  Nc7 {[%clk 0:01:29]} 23. a4 {[%clk 0:01:44]}  Nd5 {[%clk 0:01:11]} 24. Be4 {[%clk 0:01:43]}  Nb4 {[%clk 0:01:06]} 25. Rd2 {[%clk 0:01:39]}  g6 {[%clk 0:00:49]} 26. h4 {[%clk 0:01:37]}  h5 {[%clk 0:00:47]} 27. Rcd1 {[%clk 0:01:34]}  Nd5 {[%clk 0:00:45]} 28. Rd3 {[%clk 0:01:35]}  Qg7 {[%clk 0:00:40]} 29. Qd2 {[%clk 0:01:30]}  Nb4 {[%clk 0:00:35]} 30. Rf3 {[%clk 0:01:30]}  Rab8 {[%clk 0:00:22]} 31. Nc4 {[%clk 0:01:30]}  e5 {[%clk 0:00:14]} 32. Nxe5 {[%clk 0:01:27]}  b6 {[%clk 0:00:14]} 33. cxb6 {[%clk 0:01:18]}  c5 {[%clk 0:00:15]} 34. Qg5 {[%clk 0:01:01]}  cxd4 {[%clk 0:00:14]} 35. Qe7 {[%clk 0:00:56]}  f5 {[%clk 0:00:14]} 36. Qe6+ {[%clk 0:00:23]}  Bf7 {[%clk 0:00:13]} 37. Qe7 {[%clk 0:00:13]}  Be8 {[%clk 0:00:07]} 38. Qe6+ {[%clk 0:00:12]}  Bf7 {[%clk 0:00:07]} 39. Nxf7 {[%clk 0:00:11]}  Qxf7 {[%clk 0:00:07]} 40. Bxf5 {[%clk 0:00:11]}  gxf5 {[%clk 0:00:07]} 41. Qe5 {[%clk 0:00:12]}  Qd5 {[%clk 0:00:05]} 42. Qf4 {[%clk 0:00:11]}  Rxb6 {[%clk 0:00:03]} 43. Qg5+ {[%clk 0:00:11]}  Kh7 {[%clk 0:00:03]} 44. Rxf5 {[%clk 0:00:12]}  Qxb3 {[%clk 0:00:01]} 45. Re1 {[%clk 0:00:10]}  Rg6 {[%clk 0:00:01]} 46. Re7+ {[%clk 0:00:10]}  Kh8 {[%clk 0:00:01]} 47. Qxg6 {[%clk 0:00:10]} 1-0


[Site "https://www.chess.com"]

[Event "Titled Tuesday Blitz April 12 Early 2022"]
[White "Fernandez Siles, Luis"]
[Black "Kejzar, Petra"]
[WhiteFideId "2209420"]
[BlackFideId "14610213"]
[WhiteElo "2212"]
[BlackElo "2003"]
[Result "1-0"]
[Round "10"]
[TimeControl "180+1"]
[Date "2022.04.13"]
[WhiteClock "0:00:18"]
[BlackClock "0:00:04"]

1. d4 {[%clk 0:03:00]}  Nf6 {[%clk 0:02:56]} 2. c4 {[%clk 0:03:00]}  e6 {[%clk 0:02:56]} 3. Nc3 {[%clk 0:03:00]}  Bb4 {[%clk 0:02:56]} 4. e3 {[%clk 0:03:00]}  O-O {[%clk 0:02:55]} 5. Ne2 {[%clk 0:03:00]}  d5 {[%clk 0:02:55]} 6. a3 {[%clk 0:03:00]}  Be7 {[%clk 0:02:53]} 7. cxd5 {[%clk 0:03:00]}  exd5 {[%clk 0:02:52]} 8. g3 {[%clk 0:03:00]}  c5 {[%clk 0:02:48]} 9. dxc5 {[%clk 0:02:52]}  Bxc5 {[%clk 0:02:46]} 10. Bg2 {[%clk 0:02:52]}  Be6 {[%clk 0:02:44]} 11. O-O {[%clk 0:02:33]}  Nc6 {[%clk 0:02:44]} 12. Nf4 {[%clk 0:02:29]}  d4 {[%clk 0:02:40]} 13. exd4 {[%clk 0:02:28]}  Nxd4 {[%clk 0:02:31]} 14. Nxe6 {[%clk 0:02:13]}  fxe6 {[%clk 0:02:30]} 15. Be3 {[%clk 0:01:59]}  e5 {[%clk 0:02:25]} 16. Rc1 {[%clk 0:01:53]}  Qe7 {[%clk 0:02:18]} 17. Re1 {[%clk 0:01:48]}  Rad8 {[%clk 0:02:14]} 18. Qa4 {[%clk 0:01:30]}  Ng4 {[%clk 0:01:52]} 19. Nd5 {[%clk 0:01:17]}  Qd6 {[%clk 0:01:43]} 20. Qc4 {[%clk 0:01:02]}  b6 {[%clk 0:01:21]} 21. Nf6+ {[%clk 0:00:57]}  Kh8 {[%clk 0:01:19]} 22. Nxg4 {[%clk 0:00:58]}  h5 {[%clk 0:01:12]} 23. Bxd4 {[%clk 0:00:53]}  Bxd4 {[%clk 0:01:10]} 24. Ne3 {[%clk 0:00:53]}  Qh6 {[%clk 0:01:01]} 25. b4 {[%clk 0:00:40]}  h4 {[%clk 0:00:57]} 26. Qc6 {[%clk 0:00:39]}  Qg5 {[%clk 0:00:41]} 27. Qe4 {[%clk 0:00:37]}  hxg3 {[%clk 0:00:36]} 28. hxg3 {[%clk 0:00:38]}  Kg8 {[%clk 0:00:35]} 29. Rc6 {[%clk 0:00:35]}  Bxe3 {[%clk 0:00:32]} 30. Qxe3 {[%clk 0:00:33]}  Qf5 {[%clk 0:00:21]} 31. Be4 {[%clk 0:00:31]}  Qh5 {[%clk 0:00:16]} 32. Rc7 {[%clk 0:00:26]}  Rd4 {[%clk 0:00:15]} 33. Bg2 {[%clk 0:00:23]}  Re8 {[%clk 0:00:05]} 34. Bf3 {[%clk 0:00:20]}  Qg6 {[%clk 0:00:04]} 35. Be4 {[%clk 0:00:19]}  Qh5 {[%clk 0:00:04]} 36. Qf3 {[%clk 0:00:18]} 1-0


[Site "https://www.chess.com"]

[Event "Titled Tuesday Blitz April 12 Early 2022"]
[White "Gabdrakhmanov, Azat"]
[Black "Artemenko, Oleg"]
[WhiteFideId "34189197"]
[BlackFideId "14201798"]
[WhiteElo "2279"]
[BlackElo "2287"]
[Result "0-1"]
[Round "10"]
[TimeControl "180+1"]
[Date "2022.04.12"]
[WhiteClock "0:00:16"]
[BlackClock "0:02:05"]

1. e4 {[%clk 0:03:00]}  e6 {[%clk 0:02:58]} 2. d3 {[%clk 0:03:00]}  d5 {[%clk 0:02:58]} 3. Nd2 {[%clk 0:03:01]}  Nf6 {[%clk 0:02:59]} 4. Ngf3 {[%clk 0:03:01]}  c5 {[%clk 0:02:59]} 5. g3 {[%clk 0:03:01]}  Nc6 {[%clk 0:02:59]} 6. Bg2 {[%clk 0:03:01]}  Be7 {[%clk 0:03:00]} 7. O-O {[%clk 0:03:01]}  O-O {[%clk 0:03:01]} 8. Re1 {[%clk 0:03:02]}  b5 {[%clk 0:03:01]} 9. e5 {[%clk 0:03:01]}  Nd7 {[%clk 0:03:02]} 10. Nf1 {[%clk 0:03:01]}  b4 {[%clk 0:03:02]} 11. h4 {[%clk 0:02:59]}  Ba6 {[%clk 0:03:02]} 12. Bf4 {[%clk 0:02:58]}  Rc8 {[%clk 0:03:02]} 13. Ne3 {[%clk 0:02:58]}  Nd4 {[%clk 0:03:03]} 14. h5 {[%clk 0:02:53]}  Re8 {[%clk 0:03:00]} 15. h6 {[%clk 0:02:30]}  g6 {[%clk 0:03:00]} 16. Nxd4 {[%clk 0:02:20]}  cxd4 {[%clk 0:02:58]} 17. Ng4 {[%clk 0:02:21]}  Qc7 {[%clk 0:02:56]} 18. Rc1 {[%clk 0:01:43]}  Qc5 {[%clk 0:02:55]} 19. Qd2 {[%clk 0:01:38]}  Rc6 {[%clk 0:02:55]} 20. Bg5 {[%clk 0:01:39]}  Bf8 {[%clk 0:02:55]} 21. Qf4 {[%clk 0:01:37]}  Rec8 {[%clk 0:02:53]} 22. Bf6 {[%clk 0:01:11]}  Be7 {[%clk 0:02:24]} 23. Bxe7 {[%clk 0:01:02]}  Qxe7 {[%clk 0:02:23]} 24. Qxd4 {[%clk 0:01:03]}  Qc5 {[%clk 0:02:17]} 25. Qf4 {[%clk 0:00:59]}  Qe7 {[%clk 0:02:17]} 26. c4 {[%clk 0:00:41]}  bxc3 {[%clk 0:02:16]} 27. bxc3 {[%clk 0:00:42]}  Bxd3 {[%clk 0:02:16]} 28. Nf6+ {[%clk 0:00:37]}  Nxf6 {[%clk 0:02:16]} 29. exf6 {[%clk 0:00:38]}  Qa3 {[%clk 0:02:16]} 30. Qe3 {[%clk 0:00:27]}  Bf5 {[%clk 0:02:12]} 31. Bxd5 {[%clk 0:00:24]}  exd5 {[%clk 0:02:12]} 32. Qe8+ {[%clk 0:00:23]}  Rxe8 {[%clk 0:02:13]} 33. Rxe8+ {[%clk 0:00:23]}  Qf8 {[%clk 0:02:13]} 34. Rce1 {[%clk 0:00:23]}  Rxf6 {[%clk 0:02:10]} 35. Rxf8+ {[%clk 0:00:24]}  Kxf8 {[%clk 0:02:11]} 36. Re5 {[%clk 0:00:24]}  Be6 {[%clk 0:02:09]} 37. f4 {[%clk 0:00:20]}  Rf5 {[%clk 0:02:08]} 38. Re2 {[%clk 0:00:20]}  g5 {[%clk 0:02:08]} 39. Kf2 {[%clk 0:00:17]}  gxf4 {[%clk 0:02:08]} 40. g4 {[%clk 0:00:17]}  Rg5 {[%clk 0:02:09]} 41. Rb2 {[%clk 0:00:18]}  Rxg4 {[%clk 0:02:07]} 42. Kf3 {[%clk 0:00:17]}  Rh4 {[%clk 0:02:06]} 43. Rb8+ {[%clk 0:00:16]}  Ke7 {[%clk 0:02:05]} 0-1


[Site "https://www.chess.com"]

[Event "Titled Tuesday Blitz April 12 Early 2022"]
[White "Gallegos Diaz, Carlos Alberto"]
[Black "Iskusnyh, Sergei"]
[WhiteFideId "3900886"]
[BlackFideId "4120027"]
[WhiteElo "2362"]
[BlackElo "2492"]
[Result "1-0"]
[Round "10"]
[TimeControl "180+1"]
[Date "2022.04.13"]
[WhiteClock "0:00:46"]
[BlackClock "0:00:22"]

1. e4 {[%clk 0:03:00]}  e6 {[%clk 0:02:59]} 2. d3 {[%clk 0:03:00]}  c5 {[%clk 0:02:58]} 3. Nd2 {[%clk 0:03:01]}  Nc6 {[%clk 0:02:58]} 4. Ngf3 {[%clk 0:03:02]}  g6 {[%clk 0:02:58]} 5. Be2 {[%clk 0:03:02]}  Bg7 {[%clk 0:02:59]} 6. O-O {[%clk 0:03:02]}  d6 {[%clk 0:02:59]} 7. c3 {[%clk 0:03:02]}  Nge7 {[%clk 0:02:58]} 8. Re1 {[%clk 0:03:02]}  O-O {[%clk 0:02:57]} 9. Bf1 {[%clk 0:03:02]}  e5 {[%clk 0:02:55]} 10. Nb3 {[%clk 0:03:02]}  b6 {[%clk 0:02:35]} 11. h3 {[%clk 0:03:01]}  d5 {[%clk 0:02:33]} 12. exd5 {[%clk 0:02:57]}  Nxd5 {[%clk 0:02:33]} 13. d4 {[%clk 0:02:56]}  exd4 {[%clk 0:02:28]} 14. cxd4 {[%clk 0:02:57]}  cxd4 {[%clk 0:02:26]} 15. Bg5 {[%clk 0:02:50]}  Qd6 {[%clk 0:02:17]} 16. Nbxd4 {[%clk 0:02:42]}  Nxd4 {[%clk 0:02:15]} 17. Nxd4 {[%clk 0:02:42]}  Bb7 {[%clk 0:02:12]} 18. Nb5 {[%clk 0:02:31]}  Qb4 {[%clk 0:02:00]} 19. Rb1 {[%clk 0:02:01]}  Nf6 {[%clk 0:00:59]} 20. a3 {[%clk 0:01:49]}  Qc5 {[%clk 0:00:59]} 21. Be3 {[%clk 0:01:40]}  Qd5 {[%clk 0:00:59]} 22. Nc7 {[%clk 0:01:34]}  Qxd1 {[%clk 0:00:57]} 23. Rbxd1 {[%clk 0:01:34]}  Rad8 {[%clk 0:00:57]} 24. Bd4 {[%clk 0:01:21]}  Rd7 {[%clk 0:00:57]} 25. Bxf6 {[%clk 0:01:20]}  Rxd1 {[%clk 0:00:54]} 26. Rxd1 {[%clk 0:01:19]}  Bxf6 {[%clk 0:00:55]} 27. Rd7 {[%clk 0:01:11]}  Bc6 {[%clk 0:00:52]} 28. Rd6 {[%clk 0:01:08]}  Bxb2 {[%clk 0:00:44]} 29. Rxc6 {[%clk 0:01:07]}  Bxa3 {[%clk 0:00:45]} 30. Nb5 {[%clk 0:01:07]}  Bc5 {[%clk 0:00:45]} 31. Nxa7 {[%clk 0:01:05]}  Kg7 {[%clk 0:00:45]} 32. Rc8 {[%clk 0:01:04]}  Rxc8 {[%clk 0:00:43]} 33. Nxc8 {[%clk 0:01:05]}  Kf6 {[%clk 0:00:43]} 34. Bb5 {[%clk 0:01:03]}  Ke5 {[%clk 0:00:42]} 35. Kf1 {[%clk 0:01:01]}  Kd4 {[%clk 0:00:42]} 36. Ke2 {[%clk 0:01:02]}  Kc3 {[%clk 0:00:42]} 37. Na7 {[%clk 0:01:01]}  Kb4 {[%clk 0:00:41]} 38. f4 {[%clk 0:00:59]}  Bd6 {[%clk 0:00:41]} 39. Bd3 {[%clk 0:00:51]}  Bxf4 {[%clk 0:00:40]} 40. Nc6+ {[%clk 0:00:51]}  Kc5 {[%clk 0:00:38]} 41. Nd8 {[%clk 0:00:52]}  b5 {[%clk 0:00:36]} 42. Nxf7 {[%clk 0:00:51]}  b4 {[%clk 0:00:36]} 43. Nd8 {[%clk 0:00:47]}  Kd5 {[%clk 0:00:34]} 44. Kf3 {[%clk 0:00:45]}  Bc7 {[%clk 0:00:33]} 45. Be4+ {[%clk 0:00:45]}  Ke5 {[%clk 0:00:27]} 46. Nc6+ {[%clk 0:00:45]}  Kf6 {[%clk 0:00:22]} 47. Nxb4 {[%clk 0:00:46]}  h5 {[%clk 0:00:22]} 48. Nd5+ {[%clk 0:00:46]} 1-0


[Site "https://www.chess.com"]

[Event "Titled Tuesday Blitz April 12 Early 2022"]
[White "Gatterer, Florian"]
[Black "Bowden, Karl"]
[WhiteFideId "811688"]
[BlackFideId "400548"]
[WhiteElo "2218"]
[BlackElo "2329"]
[Result "1/2-1/2"]
[Round "10"]
[TimeControl "180+1"]
[Date "2022.04.13"]
[WhiteClock "0:02:30"]
[BlackClock "0:02:27"]

1. b3 {[%clk 0:03:00]}  Nf6 {[%clk 0:02:54]} 2. Bb2 {[%clk 0:02:59]}  g6 {[%clk 0:02:54]} 3. e4 {[%clk 0:02:55]}  d6 {[%clk 0:02:52]} 4. Nf3 {[%clk 0:02:46]}  Bg7 {[%clk 0:02:52]} 5. Be2 {[%clk 0:02:45]}  O-O {[%clk 0:02:52]} 6. d3 {[%clk 0:02:44]}  c5 {[%clk 0:02:46]} 7. c4 {[%clk 0:02:41]}  Nc6 {[%clk 0:02:45]} 8. Nc3 {[%clk 0:02:40]}  Ne8 {[%clk 0:02:40]} 9. h3 {[%clk 0:02:37]}  a6 {[%clk 0:02:39]} 10. O-O {[%clk 0:02:35]}  b5 {[%clk 0:02:38]} 11. cxb5 {[%clk 0:02:32]}  axb5 {[%clk 0:02:38]} 12. Qc1 {[%clk 0:02:31]}  b4 {[%clk 0:02:27]} 13. Nd5 {[%clk 0:02:30]} 1/2-1/2


[Site "https://www.chess.com"]

[Event "Titled Tuesday Blitz April 12 Early 2022"]
[White "Hansen, Eric"]
[Black "Ibadov, Dashgyn"]
[WhiteFideId "2606771"]
[BlackFideId "24107514"]
[WhiteElo "2568"]
[BlackElo "2138"]
[Result "1-0"]
[Round "10"]
[TimeControl "180+1"]
[Date "2022.04.12"]
[WhiteClock "0:00:07"]
[BlackClock "0:00:02"]

1. e4 {[%clk 0:03:00]}  c5 {[%clk 0:03:00]} 2. Nf3 {[%clk 0:03:01]}  d6 {[%clk 0:03:00]} 3. Bb5+ {[%clk 0:03:01]}  Bd7 {[%clk 0:03:00]} 4. Bxd7+ {[%clk 0:03:01]}  Nxd7 {[%clk 0:03:00]} 5. O-O {[%clk 0:03:01]}  Ngf6 {[%clk 0:03:00]} 6. Re1 {[%clk 0:03:02]}  e6 {[%clk 0:03:01]} 7. c3 {[%clk 0:03:02]}  Be7 {[%clk 0:03:01]} 8. d4 {[%clk 0:03:01]}  O-O {[%clk 0:03:01]} 9. h3 {[%clk 0:03:01]}  b5 {[%clk 0:03:00]} 10. Nbd2 {[%clk 0:02:57]}  Qc7 {[%clk 0:02:57]} 11. Nf1 {[%clk 0:02:57]}  Rfc8 {[%clk 0:02:53]} 12. e5 {[%clk 0:02:09]}  dxe5 {[%clk 0:02:49]} 13. dxe5 {[%clk 0:02:09]}  Nd5 {[%clk 0:02:48]} 14. Ng3 {[%clk 0:02:08]}  c4 {[%clk 0:02:44]} 15. Re4 {[%clk 0:01:55]}  Nc5 {[%clk 0:02:39]} 16. Rg4 {[%clk 0:01:55]}  Nd3 {[%clk 0:02:13]} 17. Bh6 {[%clk 0:01:54]}  g6 {[%clk 0:02:12]} 18. Qe2 {[%clk 0:01:55]}  Bc5 {[%clk 0:02:02]} 19. Rf1 {[%clk 0:01:50]}  Bf8 {[%clk 0:01:42]} 20. Bxf8 {[%clk 0:01:46]}  Rxf8 {[%clk 0:01:43]} 21. Rh4 {[%clk 0:01:25]}  Qe7 {[%clk 0:01:12]} 22. Rg4 {[%clk 0:00:59]}  Rae8 {[%clk 0:00:50]} 23. Qd2 {[%clk 0:00:58]}  f5 {[%clk 0:00:40]} 24. exf6 {[%clk 0:00:58]}  Nxf6 {[%clk 0:00:37]} 25. Rg5 {[%clk 0:00:53]}  e5 {[%clk 0:00:33]} 26. Qe3 {[%clk 0:00:45]}  e4 {[%clk 0:00:31]} 27. Nd4 {[%clk 0:00:45]}  a6 {[%clk 0:00:24]} 28. b3 {[%clk 0:00:44]}  Qd6 {[%clk 0:00:19]} 29. bxc4 {[%clk 0:00:44]}  bxc4 {[%clk 0:00:19]} 30. Ndf5 {[%clk 0:00:39]}  Qd7 {[%clk 0:00:17]} 31. Nh6+ {[%clk 0:00:33]}  Kh8 {[%clk 0:00:17]} 32. Rb1 {[%clk 0:00:27]}  Rb8 {[%clk 0:00:07]} 33. Rxb8 {[%clk 0:00:21]}  Rxb8 {[%clk 0:00:07]} 34. Ng4 {[%clk 0:00:16]}  Rb1+ {[%clk 0:00:08]} 35. Kh2 {[%clk 0:00:16]}  Nxg4+ {[%clk 0:00:06]} 36. Rxg4 {[%clk 0:00:16]}  Qf7 {[%clk 0:00:03]} 37. Nxe4 {[%clk 0:00:11]}  Qc7+ {[%clk 0:00:02]} 38. g3 {[%clk 0:00:09]}  Ne5 {[%clk 0:00:02]} 39. Rf4 {[%clk 0:00:09]}  Kg7 {[%clk 0:00:02]} 40. Qd4 {[%clk 0:00:07]} 1-0


[Site "https://www.chess.com"]

[Event "Titled Tuesday Blitz April 12 Early 2022"]
[White "Hess, Robert"]
[Black "Weetik, Vjacheslav"]
[WhiteFideId "2022036"]
[BlackFideId "4153472"]
[WhiteElo "2557"]
[BlackElo "2469"]
[Result "1-0"]
[Round "10"]
[TimeControl "180+1"]
[Date "2022.04.12"]
[WhiteClock "0:00:03"]
[BlackClock "0:00:01"]

1. b3 {[%clk 0:02:45]}  d5 {[%clk 0:02:59]} 2. Bb2 {[%clk 0:02:45]}  Bg4 {[%clk 0:02:58]} 3. d3 {[%clk 0:02:46]}  Nd7 {[%clk 0:02:58]} 4. Nd2 {[%clk 0:02:46]}  e5 {[%clk 0:02:58]} 5. h3 {[%clk 0:02:47]}  Bh5 {[%clk 0:02:58]} 6. g4 {[%clk 0:02:48]}  Bg6 {[%clk 0:02:58]} 7. e3 {[%clk 0:02:48]}  Bd6 {[%clk 0:02:55]} 8. Bg2 {[%clk 0:02:45]}  c6 {[%clk 0:02:51]} 9. Ngf3 {[%clk 0:02:45]}  h5 {[%clk 0:02:49]} 10. Qe2 {[%clk 0:02:40]}  Ne7 {[%clk 0:02:44]} 11. Nh4 {[%clk 0:02:39]}  Bh7 {[%clk 0:02:38]} 12. O-O-O {[%clk 0:02:36]}  a5 {[%clk 0:02:37]} 13. a4 {[%clk 0:02:34]}  b5 {[%clk 0:02:28]} 14. axb5 {[%clk 0:02:33]}  cxb5 {[%clk 0:02:22]} 15. d4 {[%clk 0:02:20]}  Qc7 {[%clk 0:02:12]} 16. Nf5 {[%clk 0:02:05]}  Bxf5 {[%clk 0:01:46]} 17. gxf5 {[%clk 0:02:04]}  a4 {[%clk 0:01:46]} 18. Qxb5 {[%clk 0:01:32]}  O-O {[%clk 0:01:41]} 19. Bxd5 {[%clk 0:00:33]}  Ra5 {[%clk 0:01:35]} 20. Qc4 {[%clk 0:00:13]}  Nxd5 {[%clk 0:01:03]} 21. Qxc7 {[%clk 0:00:12]}  Nxc7 {[%clk 0:01:04]} 22. Nc4 {[%clk 0:00:12]}  a3 {[%clk 0:00:21]} 23. Ba1 {[%clk 0:00:12]}  Bb4 {[%clk 0:00:12]} 24. dxe5 {[%clk 0:00:08]}  Nc5 {[%clk 0:00:11]} 25. Nxa5 {[%clk 0:00:06]}  Bxa5 {[%clk 0:00:12]} 26. Rhg1 {[%clk 0:00:05]}  Nb5 {[%clk 0:00:09]} 27. Rd5 {[%clk 0:00:04]}  Rc8 {[%clk 0:00:07]} 28. e6 {[%clk 0:00:04]}  Bc3 {[%clk 0:00:06]} 29. e7 {[%clk 0:00:03]}  Bxa1 {[%clk 0:00:03]} 30. Rd8+ {[%clk 0:00:03]}  Kh7 {[%clk 0:00:04]} 31. Rxc8 {[%clk 0:00:03]}  Bb2+ {[%clk 0:00:03]} 32. Kd2 {[%clk 0:00:03]}  a2 {[%clk 0:00:02]} 33. e8=Q {[%clk 0:00:03]}  Bc3+ {[%clk 0:00:01]} 34. Ke2 {[%clk 0:00:03]} 1-0


[Site "https://www.chess.com"]

[Event "Titled Tuesday Blitz April 12 Early 2022"]
[White "Hnydiuk, Aleksander"]
[Black "Uzuner, Tufan Can"]
[WhiteFideId "1109057"]
[BlackFideId "6300499"]
[WhiteElo "2374"]
[BlackElo "2219"]
[Result "1-0"]
[Round "10"]
[TimeControl "180+1"]
[Date "2022.04.13"]
[WhiteClock "0:00:26"]
[BlackClock "0:01:04"]

1. e4 {[%clk 0:03:00]}  c6 {[%clk 0:02:58]} 2. d4 {[%clk 0:02:57]}  d5 {[%clk 0:02:58]} 3. f3 {[%clk 0:02:57]}  e5 {[%clk 0:02:58]} 4. dxe5 {[%clk 0:02:44]}  Bc5 {[%clk 0:02:58]} 5. Nc3 {[%clk 0:02:44]}  Qb6 {[%clk 0:02:58]} 6. Na4 {[%clk 0:02:44]}  Bf2+ {[%clk 0:02:59]} 7. Ke2 {[%clk 0:02:42]}  Qd4 {[%clk 0:03:00]} 8. Qxd4 {[%clk 0:02:27]}  Bxd4 {[%clk 0:03:01]} 9. exd5 {[%clk 0:02:21]}  Bxe5 {[%clk 0:03:01]} 10. Nc3 {[%clk 0:01:50]}  Bxc3 {[%clk 0:02:54]} 11. bxc3 {[%clk 0:01:51]}  cxd5 {[%clk 0:02:54]} 12. Kf2 {[%clk 0:01:49]}  Nc6 {[%clk 0:02:52]} 13. Rb1 {[%clk 0:01:41]}  Nge7 {[%clk 0:02:50]} 14. Bb5 {[%clk 0:01:24]}  O-O {[%clk 0:02:49]} 15. Ne2 {[%clk 0:01:22]}  Bf5 {[%clk 0:02:45]} 16. Bd3 {[%clk 0:01:10]}  b6 {[%clk 0:02:36]} 17. Bf4 {[%clk 0:00:56]}  Rfd8 {[%clk 0:02:30]} 18. Rhd1 {[%clk 0:00:56]}  Rac8 {[%clk 0:02:27]} 19. g4 {[%clk 0:00:39]}  Be6 {[%clk 0:02:19]} 20. h4 {[%clk 0:00:34]}  f6 {[%clk 0:02:08]} 21. Ba6 {[%clk 0:00:33]}  Na5 {[%clk 0:01:54]} 22. Bxc8 {[%clk 0:00:33]}  Rxc8 {[%clk 0:01:54]} 23. Nd4 {[%clk 0:00:30]}  Bf7 {[%clk 0:01:53]} 24. Nb5 {[%clk 0:00:30]}  a6 {[%clk 0:01:48]} 25. Nd6 {[%clk 0:00:29]}  Rxc3 {[%clk 0:01:47]} 26. Rxb6 {[%clk 0:00:30]}  Rxc2+ {[%clk 0:01:47]} 27. Rd2 {[%clk 0:00:29]}  Rxd2+ {[%clk 0:01:44]} 28. Bxd2 {[%clk 0:00:30]}  Be6 {[%clk 0:01:04]} 29. Bxa5 {[%clk 0:00:26]} 1-0


[Site "https://www.chess.com"]